Workbook

Sheet Cronograma Físico-Financeiro
A1: CRONOGRAMA FÍSICO FINANCEIRO
A3: ITEM | B3: DISCRIMINAÇÃO | C3: CRONOGRAMA FÍSICO-FINANCEIRO
C4: Preço Total | D4: 30 DIAS | E4: 60 DIAS | F4: 90 DIAS | G4: 120 DIAS | H4: TOTAL
D5: 1 | H5: =SUM(D5:G5) -> 1
A6: 1.1 | B6: Mobilização de Equipamento, Materiais e Pessoal, com deslocamentos internos. | C6: 218.04 | D6: =D5*$C6 -> 218.04 | H6: =SUM(D6:G6) -> 218.04
G7: 1 | H7: =SUM(D7:G7) -> 1
A8: 1.2 | B8: Desmobilização de Equipamento, Material e Pessoal. | C8: 57.3 | G8: =G7*$C8 -> 57.3 | H8: 57.3
D9: 0.25 | E9: 0.25 | F9: 0.25 | G9: 0.25 | H9: 1
A10: 1.3 | B10: Administração local da obra. | C10: 420.25 | D10: =D9*$C10 -> 105.0625 | E10: 105.0625 | F10: 105.0625 | G10: 105.0625 | H10: 420.25
D11: 1 | H11: 1
A12: 1.4 | B12: Placa de identificação de obra conforme modelo fornecido pela CODEVASF medindo 3,0m X 2,0 m, incluindo fornecimento, instalação e conservação. | C12: 376.41 | D12: =D11*$C12 -> 376.41 | H12: 376.41
D13: 0.25 | E13: 0.25 | F13: 0.25 | G13: 0.25 | H13: 1
A14: 1.5 | B14: Locação de Veiculo tipo Caminhonete, diesel, 4x4, cabine dupla (163 CV), sem motorista, para fiscalização, incluindo combustível, lubrificantes e manutenção. | C14: 267.91 | D14: =D13*$C14 -> 66.9775 | E14: =E13*$C14 -> 66.9775 | F14: =F13*$C14 -> 66.9775 | G14: =G13*$C14 -> 66.9775 | H14: 267.91
D15: 1 | H15: 1
A16: 1.6 | B16: Registro em cartório de registro de imóveis ou títulos de documentos do Termo de Cessão de uso da área onde está sendo recuperada a aguada. | C16: 264.67 | D16: =D15*$C16 -> 264.67 | H16: 264.67
D17: 1 | H17: 1
A18: 1.7 | B18: Abertura de caminho de serviço, com 4,0 metros de largura. | C18: 200 | D18: =D17*$C18 -> 200 | H18: 200
D19: 1 | H19: 1
A20: 1.8 | B20: Demolição de cerca - estaca de madeira, com até 20 fios de arame farpado. | C20: 104.4 | D20: =D19*$C20 -> 104.4 | H20: 104.4
G21: 1 | H21: 1
A22: 1.9 | B22: Reassentamento de cerca - estaca de madeira, com até 20 fios de arame farpado. | C22: 148.35 | G22: =G21*$C22 -> 148.35 | H22: 148.35
D23: 1 | H23: 1
A24: 1.10 | B24: Desmatamento e limpeza mecanizada de terreno com árvores até Ø 15 cm, utilizando trator de esteiras. | C24: 900 | D24: =D23*$C24 -> 900 | H24: 900
E25: 0.4 | F25: 0.4 | G25: 0.2 | H25: 1
A26: 1.11 | B26: Escavação, carga e transporte de material de 1ª categoria, caminho de serviço leito natural, com escavadeira hidráulica e caminhão basculante 10 m³, DMT de 50 ate 200 m. | C26: 12682 | E26: =E25*$C26 -> 5072.8 | F26: 5072.8 | G26: 2536.4 | H26: 12682
E27: 0.4 | F27: 0.4 | G27: 0.2 | H27: 1
A28: 1.12 | B28: Espalhamento e Compactação mecânica de material de 1ª categoria em talude de aguada sem controle do Grau de Compactação mediante a utilização de trator de esteiras com potencia de 150HP. | C28: 3094 | E28: =E27*$C28 -> 1237.6 | F28: =F27*$C28 -> 1237.6 | G28: =G27*$C28 -> 618.8 | H28: 3094
A30: VALOR TOTAL | C30: =SUM(C6:C29) -> 18733.33 | D30: =D6+D8+D10+D12+D14+D16+D18+D20+D22+D24+D26+D28 -> 2235.56 | E30: =E6+E8+E10+E12+E14+E16+E18+E20+E22+E24+E26+E28 -> 6482.44 | F30: 6482.44 | G30: 3532.89 | H30: 18733.33
C32: ACUMULADO | D32: =D30 -> 2235.56 | E32: =D32+E30 -> 8718 | F32: =E32+F30 -> 15200.44 | G32: 18733.33
B44: 4
